[Event "*** Titled Tuesday Blitz"]
[Site "Chess.com"]
[Date "2021.02.09"]
[Round "2"]
[White "Grineva_Marianna"]
[Black "AustrianFalcon"]
[Result "0-1"]
[WhiteElo "2193"]
[BlackElo "2422"]
[TimeControl "180+1"]
[EndTime "10:18:06 PST"]
[Termination "AustrianFalcon won by checkmate"]

1. e4 {[%clk 0:03:00.9]} 1... c5 {[%clk 0:02:53.5]} 2. Nf3 {[%clk 0:03:00.7]}
2... d6 {[%clk 0:02:51.5]} 3. d4 {[%clk 0:03:00.6]} 3... cxd4 {[%clk 0:02:46.2]}
4. Nxd4 {[%clk 0:03:01.5]} 4... Nf6 {[%clk 0:02:38]} 5. Nc3 {[%clk 0:03:01.2]}
5... a6 {[%clk 0:02:36.4]} 6. Bg5 {[%clk 0:02:57.3]} 6... e6 {[%clk 0:02:18.6]}
7. f4 {[%clk 0:02:56.7]} 7... Nbd7 {[%clk 0:02:14.9]} 8. Qe2 {[%clk 0:02:50.9]}
8... h6 {[%clk 0:02:06.9]} 9. Bh4 {[%clk 0:02:49.6]} 9... e5 {[%clk 0:02:00.9]}
10. fxe5 {[%clk 0:02:38.3]} 10... dxe5 {[%clk 0:01:55.2]} 11. O-O-O {[%clk
0:02:27.7]} 11... Qc7 {[%clk 0:01:44]} 12. Nf3 {[%clk 0:02:03.1]} 12... b5
{[%clk 0:01:35.2]} 13. Nd5 {[%clk 0:01:35.7]} 13... Nxd5 {[%clk 0:01:32.6]} 14.
exd5 {[%clk 0:01:28.9]} 14... Bd6 {[%clk 0:01:30.4]} 15. Bg3 {[%clk 0:00:53.4]}
15... O-O {[%clk 0:01:25.4]} 16. Kb1 {[%clk 0:00:52.3]} 16... Bb7 {[%clk
0:01:19.6]} 17. Qd2 {[%clk 0:00:20.5]} 17... Nb6 {[%clk 0:01:05.9]} 18. Bd3
{[%clk 0:00:17.1]} 18... f5 {[%clk 0:01:03]} 19. Nh4 {[%clk 0:00:17.2]} 19... e4
{[%clk 0:01:01.8]} 20. Be2 {[%clk 0:00:16.8]} 20... f4 {[%clk 0:00:52.6]} 21.
Be1 {[%clk 0:00:15.8]} 21... Bxd5 {[%clk 0:00:48.2]} 22. Ng6 {[%clk 0:00:15.2]}
22... Rf6 {[%clk 0:00:48]} 23. Bh5 {[%clk 0:00:13.9]} 23... Rc8 {[%clk
0:00:39.6]} 24. Rf1 {[%clk 0:00:13.8]} 24... Qc4 {[%clk 0:00:37.1]} 25. b3
{[%clk 0:00:12.7]} 25... Qxf1 {[%clk 0:00:37]} 26. Bh4 {[%clk 0:00:11.9]} 26...
e3 {[%clk 0:00:32.2]} 27. Rxf1 {[%clk 0:00:10.8]} 27... exd2 {[%clk 0:00:32.2]}
28. Bxf6 {[%clk 0:00:11.5]} 28... gxf6 {[%clk 0:00:32.5]} 29. Rd1 {[%clk
0:00:11.5]} 29... Bb4 {[%clk 0:00:24.8]} 30. Bg4 {[%clk 0:00:10.9]} 30... Re8
{[%clk 0:00:17]} 31. Nxf4 {[%clk 0:00:11.3]} 31... Re1 {[%clk 0:00:15.5]} 32. a3
{[%clk 0:00:10.9]} 32... Bc3 {[%clk 0:00:15.3]} 33. Ne2 {[%clk 0:00:10]} 33...
Rxd1+ {[%clk 0:00:15.1]} 34. Ka2 {[%clk 0:00:09.9]} 34... Ra1# {[%clk 0:00:16]}
0-1

[Event "*** Titled Tuesday Blitz"]
[Site "Chess.com"]
[Date "2021.02.09"]
[Round "2"]
[White "misterlamine"]
[Black "xberli"]
[Result "0-1"]
[WhiteElo "2262"]
[BlackElo "2466"]
[TimeControl "180+1"]
[EndTime "10:18:07 PST"]
[Termination "xberli won on time"]

1. d4 {[%clk 0:02:49.4]} 1... Nf6 {[%clk 0:02:57.9]} 2. c4 {[%clk 0:02:47.6]}
2... e6 {[%clk 0:02:57.7]} 3. Nf3 {[%clk 0:02:45.1]} 3... d5 {[%clk 0:02:55.9]}
4. Nc3 {[%clk 0:02:44.6]} 4... Bb4 {[%clk 0:02:55.2]} 5. Bg5 {[%clk 0:02:42.8]}
5... O-O {[%clk 0:02:53.2]} 6. e3 {[%clk 0:02:42.5]} 6... h6 {[%clk 0:02:50.5]}
7. Bh4 {[%clk 0:02:35.4]} 7... c5 {[%clk 0:02:44.7]} 8. cxd5 {[%clk 0:02:17.9]}
8... exd5 {[%clk 0:02:37.8]} 9. Be2 {[%clk 0:02:13.1]} 9... c4 {[%clk
0:02:33.3]} 10. O-O {[%clk 0:02:06.4]} 10... Be6 {[%clk 0:02:26.8]} 11. Qc2
{[%clk 0:01:56.4]} 11... Nbd7 {[%clk 0:02:25.7]} 12. Ne5 {[%clk 0:01:37.2]}
12... Be7 {[%clk 0:02:19.5]} 13. Nxd7 {[%clk 0:01:30]} 13... Qxd7 {[%clk
0:02:12.7]} 14. Bf3 {[%clk 0:01:23.2]} 14... Rfd8 {[%clk 0:02:05.4]} 15. Rfe1
{[%clk 0:01:22.2]} 15... Bf5 {[%clk 0:01:59.9]} 16. Qd2 {[%clk 0:01:19.3]} 16...
Ne4 {[%clk 0:01:55.2]} 17. Bxe4 {[%clk 0:01:16.2]} 17... Bxe4 {[%clk 0:01:43.7]}
18. Nxe4 {[%clk 0:00:57.3]} 18... Bxh4 {[%clk 0:01:39.5]} 19. Nc3 {[%clk
0:00:53.4]} 19... b5 {[%clk 0:01:36.3]} 20. e4 {[%clk 0:00:50.7]} 20... dxe4
{[%clk 0:01:33.9]} 21. Rxe4 {[%clk 0:00:41]} 21... Bf6 {[%clk 0:01:26.1]} 22.
Rae1 {[%clk 0:00:32.2]} 22... b4 {[%clk 0:01:21.9]} 23. Ne2 {[%clk 0:00:31.1]}
23... a5 {[%clk 0:01:19.3]} 24. h3 {[%clk 0:00:18.5]} 24... Qa4 {[%clk
0:01:08.5]} 25. Nc1 {[%clk 0:00:14.2]} 25... Rac8 {[%clk 0:01:07.3]} 26. Qe2
{[%clk 0:00:11.5]} 26... Rxd4 {[%clk 0:01:01.2]} 27. Rxd4 {[%clk 0:00:10.5]}
27... Bxd4 {[%clk 0:01:02.1]} 28. b3 {[%clk 0:00:06.8]} 28... Qc6 {[%clk
0:00:54.8]} 29. bxc4 {[%clk 0:00:06.7]} 29... Qxc4 {[%clk 0:00:55.7]} 30. Qxc4
{[%clk 0:00:06.6]} 30... Rxc4 {[%clk 0:00:56.6]} 31. Nb3 {[%clk 0:00:06.2]}
31... a4 {[%clk 0:00:52.2]} 32. Nxd4 {[%clk 0:00:06]} 32... Rxd4 {[%clk
0:00:53.1]} 33. Rb1 {[%clk 0:00:06.2]} 33... a3 {[%clk 0:00:46.9]} 34. f3 {[%clk
0:00:04.3]} 34... h5 {[%clk 0:00:44.8]} 35. Kh2 {[%clk 0:00:02.1]} 35... h4
{[%clk 0:00:44.6]} 36. Rb3 {[%clk 0:00:02.2]} 36... g5 {[%clk 0:00:44]} 37. Re3
{[%clk 0:00:01.4]} 37... Kg7 {[%clk 0:00:43.7]} 38. Re5 {[%clk 0:00:01.3]} 38...
Kg6 {[%clk 0:00:39.1]} 0-1

[Event "*** Titled Tuesday Blitz"]
[Site "Chess.com"]
[Date "2021.02.09"]
[Round "2"]
[White "HajiyevKanan"]
[Black "wannabe2700"]
[Result "0-1"]
[WhiteElo "2497"]
[BlackElo "2780"]
[TimeControl "180+1"]
[EndTime "10:18:10 PST"]
[Termination "wannabe2700 won by checkmate"]

1. d4 {[%clk 0:03:00.9]} 1... f5 {[%clk 0:02:59.6]} 2. e4 {[%clk 0:03:00.1]}
2... fxe4 {[%clk 0:02:59.5]} 3. Nc3 {[%clk 0:03:00.4]} 3... Nf6 {[%clk
0:02:59.5]} 4. Bg5 {[%clk 0:03:00.6]} 4... Nc6 {[%clk 0:02:58.4]} 5. f3 {[%clk
0:03:00]} 5... d5 {[%clk 0:02:57.5]} 6. Bxf6 {[%clk 0:02:44]} 6... exf6 {[%clk
0:02:56.5]} 7. fxe4 {[%clk 0:02:44.5]} 7... dxe4 {[%clk 0:02:28.7]} 8. Bb5
{[%clk 0:02:22]} 8... Bb4 {[%clk 0:02:04.3]} 9. d5 {[%clk 0:01:28.5]} 9... a6
{[%clk 0:02:04]} 10. Ba4 {[%clk 0:01:20.5]} 10... b5 {[%clk 0:02:00.7]} 11. dxc6
{[%clk 0:01:21]} 11... Bxc3+ {[%clk 0:01:58.4]} 12. bxc3 {[%clk 0:01:20.6]}
12... Qxd1+ {[%clk 0:01:58.3]} 13. Rxd1 {[%clk 0:01:21.5]} 13... bxa4 {[%clk
0:01:58.5]} 14. Rd4 {[%clk 0:01:19.2]} 14... f5 {[%clk 0:01:56.8]} 15. Ne2
{[%clk 0:01:08.7]} 15... Be6 {[%clk 0:01:53.6]} 16. a3 {[%clk 0:01:07.5]} 16...
Ke7 {[%clk 0:01:41.4]} 17. Kd2 {[%clk 0:00:55]} 17... Rhd8 {[%clk 0:01:39.6]}
18. Rb1 {[%clk 0:00:54.2]} 18... Rd6 {[%clk 0:01:37.2]} 19. Ke3 {[%clk
0:00:45.3]} 19... Rxc6 {[%clk 0:01:36.6]} 20. Rxa4 {[%clk 0:00:45.3]} 20... g6
{[%clk 0:01:23.4]} 21. Rb7 {[%clk 0:00:38.3]} 21... Kd6 {[%clk 0:01:16.6]} 22.
Rab4 {[%clk 0:00:31.4]} 22... Ke5 {[%clk 0:01:11.7]} 23. h4 {[%clk 0:00:30.3]}
23... h6 {[%clk 0:01:11.3]} 24. g3 {[%clk 0:00:29.9]} 24... g5 {[%clk
0:01:11.3]} 25. hxg5 {[%clk 0:00:29.3]} 25... hxg5 {[%clk 0:01:12.2]} 26. Kd2
{[%clk 0:00:09.4]} 26... f4 {[%clk 0:01:09]} 27. gxf4+ {[%clk 0:00:09.3]} 27...
gxf4 {[%clk 0:01:09.9]} 28. Nd4 {[%clk 0:00:08.3]} 28... e3+ {[%clk 0:01:05.9]}
29. Kd3 {[%clk 0:00:07]} 29... Rd8 {[%clk 0:01:01]} 30. Ra4 {[%clk 0:00:02.8]}
30... Bf5+ {[%clk 0:00:20.6]} 31. Ke2 {[%clk 0:00:02.6]} 31... Rc5 {[%clk
0:00:19.9]} 32. Nf3+ {[%clk 0:00:03.2]} 32... Kf6 {[%clk 0:00:17]} 33. Rbb4
{[%clk 0:00:04.1]} 33... Rxc3 {[%clk 0:00:15.3]} 34. Rxf4 {[%clk 0:00:04.4]}
34... Rxc2+ {[%clk 0:00:15.3]} 35. Kxe3 {[%clk 0:00:05.1]} 35... Rd3# {[%clk
0:00:15.5]} 0-1

[Event "*** Titled Tuesday Blitz"]
[Site "Chess.com"]
[Date "2021.02.09"]
[Round "2"]
[White "manipun1"]
[Black "Mikasinski"]
[Result "0-1"]
[WhiteElo "2273"]
[BlackElo "2471"]
[TimeControl "180+1"]
[EndTime "10:18:11 PST"]
[Termination "Mikasinski won by resignation"]

1. e4 {[%clk 0:03:00.9]} 1... c5 {[%clk 0:02:57.3]} 2. Nf3 {[%clk 0:03:00]} 2...
d6 {[%clk 0:02:56.7]} 3. Bb5+ {[%clk 0:03:00.1]} 3... Bd7 {[%clk 0:02:47.3]} 4.
Bxd7+ {[%clk 0:02:58.9]} 4... Qxd7 {[%clk 0:02:48.2]} 5. c4 {[%clk 0:02:59.3]}
5... Nc6 {[%clk 0:02:47.3]} 6. Nc3 {[%clk 0:02:59]} 6... g6 {[%clk 0:02:46.6]}
7. d4 {[%clk 0:02:58.8]} 7... cxd4 {[%clk 0:02:47.4]} 8. Nxd4 {[%clk 0:02:59.7]}
8... Bg7 {[%clk 0:02:48]} 9. Be3 {[%clk 0:02:59.6]} 9... Nf6 {[%clk 0:02:48.6]}
10. f3 {[%clk 0:03:00]} 10... O-O {[%clk 0:02:49.3]} 11. Rc1 {[%clk 0:02:58.3]}
11... Rfd8 {[%clk 0:02:49.8]} 12. O-O {[%clk 0:02:57]} 12... e6 {[%clk
0:02:50.4]} 13. Bf2 {[%clk 0:02:33]} 13... d5 {[%clk 0:02:39.5]} 14. cxd5 {[%clk
0:02:30.1]} 14... exd5 {[%clk 0:02:38.7]} 15. exd5 {[%clk 0:02:08.9]} 15... Nxd5
{[%clk 0:02:37.2]} 16. Nxd5 {[%clk 0:02:07.6]} 16... Qxd5 {[%clk 0:02:30.2]} 17.
Nxc6 {[%clk 0:02:07.6]} 17... bxc6 {[%clk 0:02:28.2]} 18. Qxd5 {[%clk 0:02:07]}
18... cxd5 {[%clk 0:02:29.1]} 19. b3 {[%clk 0:02:06.2]} 19... d4 {[%clk
0:02:27.4]} 20. Rfd1 {[%clk 0:02:06.1]} 20... Rd5 {[%clk 0:02:27.7]} 21. Rd3
{[%clk 0:02:06.2]} 21... a5 {[%clk 0:02:25.8]} 22. Rcd1 {[%clk 0:02:05.6]} 22...
Rad8 {[%clk 0:02:25.7]} 23. Kf1 {[%clk 0:02:04]} 23... Kf8 {[%clk 0:02:26.3]}
24. Rc1 {[%clk 0:01:58.1]} 24... Be5 {[%clk 0:02:21.3]} 25. g3 {[%clk
0:01:55.4]} 25... g5 {[%clk 0:02:21.3]} 26. Rc4 {[%clk 0:01:55.2]} 26... Ke7
{[%clk 0:02:19.8]} 27. Ke2 {[%clk 0:01:51.9]} 27... f5 {[%clk 0:02:19]} 28. Be1
{[%clk 0:01:50.7]} 28... Kf6 {[%clk 0:02:04.9]} 29. Rc6+ {[%clk 0:01:41.8]}
29... R8d6 {[%clk 0:02:02.5]} 30. Rxd6+ {[%clk 0:01:40.7]} 30... Bxd6 {[%clk
0:02:03]} 31. Rd1 {[%clk 0:01:38.8]} 31... Bb4 {[%clk 0:01:59.7]} 32. Kd3 {[%clk
0:01:36.9]} 32... Re5 {[%clk 0:01:54.6]} 33. Bxb4 {[%clk 0:01:33.5]} 33... axb4
{[%clk 0:01:54.5]} 34. Kxd4 {[%clk 0:01:33.7]} 34... Re2 {[%clk 0:01:55.1]} 35.
Kc4 {[%clk 0:01:31.6]} 35... Rxa2 {[%clk 0:01:53.1]} 36. Rh1 {[%clk 0:01:29.7]}
36... Rf2 {[%clk 0:01:52.4]} 37. Kxb4 {[%clk 0:01:29.6]} 37... Rxf3 {[%clk
0:01:52.8]} 38. Kc4 {[%clk 0:01:29.8]} 38... Rf2 {[%clk 0:01:50.7]} 39. b4
{[%clk 0:01:28.3]} 39... f4 {[%clk 0:01:51.3]} 40. gxf4 {[%clk 0:01:27.8]} 40...
gxf4 {[%clk 0:01:52]} 41. b5 {[%clk 0:01:25.5]} 41... Rb2 {[%clk 0:01:47.1]} 42.
Kc5 {[%clk 0:01:19.9]} 42... Kf5 {[%clk 0:01:46.2]} 43. b6 {[%clk 0:01:19.8]}
43... f3 {[%clk 0:01:00.7]} 44. Kc6 {[%clk 0:01:16.5]} 44... f2 {[%clk
0:00:56.4]} 45. Rf1 {[%clk 0:01:14.6]} 45... Ke4 {[%clk 0:00:56.5]} 46. b7
{[%clk 0:00:49.9]} 46... Kf3 {[%clk 0:00:55.8]} 47. Kc7 {[%clk 0:00:34.3]} 47...
h5 {[%clk 0:00:55.3]} 48. h4 {[%clk 0:00:31.2]} 48... Kg2 {[%clk 0:00:51.3]} 49.
Rc1 {[%clk 0:00:18.2]} 49... f1=Q {[%clk 0:00:50.9]} 50. Rxf1 {[%clk 0:00:17.6]}
50... Kxf1 {[%clk 0:00:51.4]} 51. b8=Q {[%clk 0:00:18.5]} 51... Rxb8 {[%clk
0:00:50.9]} 52. Kxb8 {[%clk 0:00:19.4]} 52... Kg2 {[%clk 0:00:51.5]} 53. Kc7
{[%clk 0:00:20]} 53... Kh3 {[%clk 0:00:52.3]} 54. Kd6 {[%clk 0:00:20.6]} 54...
Kxh4 {[%clk 0:00:53.2]} 55. Ke5 {[%clk 0:00:21]} 55... Kg3 {[%clk 0:00:53.9]}
0-1

[Event "*** Titled Tuesday Blitz"]
[Site "Chess.com"]
[Date "2021.02.09"]
[Round "2"]
[White "Das_Virus_2020"]
[Black "LubovMarkelova"]
[Result "0-1"]
[WhiteElo "2438"]
[BlackElo "2244"]
[TimeControl "180+1"]
[EndTime "10:18:11 PST"]
[Termination "LubovMarkelova won on time"]

1. e4 {[%clk 0:03:00.9]} 1... e5 {[%clk 0:02:59.6]} 2. Nc3 {[%clk 0:03:00.2]}
2... Nf6 {[%clk 0:02:57.4]} 3. g3 {[%clk 0:03:00.2]} 3... h5 {[%clk 0:02:52.6]}
4. h3 {[%clk 0:02:58.5]} 4... Bc5 {[%clk 0:02:48.1]} 5. Bg2 {[%clk 0:02:56.3]}
5... a6 {[%clk 0:02:48.2]} 6. d3 {[%clk 0:02:53]} 6... d6 {[%clk 0:02:48.3]} 7.
Bg5 {[%clk 0:02:49.4]} 7... Be6 {[%clk 0:02:30.4]} 8. Nge2 {[%clk 0:02:42.3]}
8... Nc6 {[%clk 0:02:30.3]} 9. Nd5 {[%clk 0:02:35.9]} 9... Bxd5 {[%clk
0:02:29.8]} 10. exd5 {[%clk 0:02:35]} 10... Ne7 {[%clk 0:02:29.6]} 11. c4 {[%clk
0:02:16.4]} 11... Qd7 {[%clk 0:02:25.4]} 12. Be3 {[%clk 0:02:13.4]} 12... Bxe3
{[%clk 0:02:20.4]} 13. fxe3 {[%clk 0:02:13.4]} 13... Nf5 {[%clk 0:02:18.2]} 14.
Qd2 {[%clk 0:02:07.8]} 14... O-O {[%clk 0:02:05]} 15. e4 {[%clk 0:02:00]} 15...
Ne7 {[%clk 0:02:04.7]} 16. O-O {[%clk 0:01:57.8]} 16... Nh7 {[%clk 0:01:57.5]}
17. Kh2 {[%clk 0:01:52]} 17... g6 {[%clk 0:01:57]} 18. Qh6 {[%clk 0:01:48.2]}
18... b5 {[%clk 0:01:49.3]} 19. b3 {[%clk 0:01:46.7]} 19... bxc4 {[%clk
0:01:49]} 20. dxc4 {[%clk 0:01:46.3]} 20... a5 {[%clk 0:01:47.7]} 21. Nc3 {[%clk
0:01:45.2]} 21... a4 {[%clk 0:01:47.4]} 22. Nxa4 {[%clk 0:01:43.4]} 22... Kh8
{[%clk 0:01:43.6]} 23. Nc3 {[%clk 0:01:36.5]} 23... Ng8 {[%clk 0:01:43.6]} 24.
Qd2 {[%clk 0:01:31.7]} 24... f5 {[%clk 0:01:43.8]} 25. Rf2 {[%clk 0:01:25.8]}
25... Qg7 {[%clk 0:01:20.8]} 26. exf5 {[%clk 0:00:58.2]} 26... gxf5 {[%clk
0:01:20.7]} 27. Nb5 {[%clk 0:00:57.2]} 27... h4 {[%clk 0:01:12.8]} 28. Qc3
{[%clk 0:00:44.1]} 28... Rf6 {[%clk 0:00:37.2]} 29. Rg1 {[%clk 0:00:22.2]} 29...
hxg3+ {[%clk 0:00:34.2]} 30. Qxg3 {[%clk 0:00:21.6]} 30... Rg6 {[%clk
0:00:34.8]} 31. Qc3 {[%clk 0:00:18.4]} 31... Rf8 {[%clk 0:00:32.2]} 32. Rff1
{[%clk 0:00:15.6]} 32... Ng5 {[%clk 0:00:27.4]} 33. a4 {[%clk 0:00:14.9]} 33...
Rh6 {[%clk 0:00:20.7]} 34. a5 {[%clk 0:00:12.4]} 34... Nf6 {[%clk 0:00:20.4]}
0-1

[Event "*** Titled Tuesday Blitz"]
[Site "Chess.com"]
[Date "2021.02.09"]
[Round "2"]
[White "paladin_ll"]
[Black "imdvb6307"]
[Result "1-0"]
[WhiteElo "2149"]
[BlackElo "2388"]
[TimeControl "180+1"]
[EndTime "10:18:12 PST"]
[Termination "paladin_ll won by resignation"]

1. Nf3 {[%clk 0:03:00]} 1... d6 {[%clk 0:02:55.7]} 2. c4 {[%clk 0:02:59.6]} 2...
f5 {[%clk 0:02:54.2]} 3. d3 {[%clk 0:02:57.8]} 3... g6 {[%clk 0:02:53]} 4. Nc3
{[%clk 0:02:57.9]} 4... Bg7 {[%clk 0:02:53]} 5. g3 {[%clk 0:02:58]} 5... Nc6
{[%clk 0:02:48.9]} 6. Bg2 {[%clk 0:02:57.9]} 6... Nf6 {[%clk 0:02:48.9]} 7. O-O
{[%clk 0:02:57.5]} 7... O-O {[%clk 0:02:49]} 8. Rb1 {[%clk 0:02:57]} 8... a5
{[%clk 0:02:48.1]} 9. Bg5 {[%clk 0:02:56.7]} 9... h6 {[%clk 0:02:46.1]} 10. Bxf6
{[%clk 0:02:56.7]} 10... Bxf6 {[%clk 0:02:44.1]} 11. a3 {[%clk 0:02:56.2]} 11...
Bg7 {[%clk 0:02:26.4]} 12. Qc2 {[%clk 0:02:50.5]} 12... g5 {[%clk 0:02:25.9]}
13. b4 {[%clk 0:02:46.4]} 13... e5 {[%clk 0:02:12.5]} 14. b5 {[%clk 0:02:34.8]}
14... Ne7 {[%clk 0:02:12.1]} 15. Nd2 {[%clk 0:02:34.4]} 15... Ng6 {[%clk
0:02:05]} 16. a4 {[%clk 0:02:28]} 16... h5 {[%clk 0:02:03.1]} 17. Nd5 {[%clk
0:02:10.1]} 17... Ne7 {[%clk 0:01:50.5]} 18. b6 {[%clk 0:01:58.1]} 18... c6
{[%clk 0:01:38.8]} 19. Nxe7+ {[%clk 0:01:53.1]} 19... Qxe7 {[%clk 0:01:37.9]}
20. Qb3 {[%clk 0:01:46.1]} 20... Kh7 {[%clk 0:01:35.5]} 21. Bxc6 {[%clk
0:01:34.9]} 21... bxc6 {[%clk 0:01:34.3]} 22. b7 {[%clk 0:01:34.6]} 22... Bxb7
{[%clk 0:00:58.2]} 23. Qxb7 {[%clk 0:01:33.5]} 23... Qxb7 {[%clk 0:00:46.5]} 24.
Rxb7 {[%clk 0:01:33.3]} 24... Rab8 {[%clk 0:00:41.6]} 25. Rfb1 {[%clk
0:01:29.9]} 25... Rxb7 {[%clk 0:00:41.2]} 26. Rxb7 {[%clk 0:01:30.8]} 26... Rd8
{[%clk 0:00:27.5]} 27. Nb3 {[%clk 0:01:29.3]} 27... Kg6 {[%clk 0:00:21.6]} 28.
e4 {[%clk 0:01:23.6]} 28... fxe4 {[%clk 0:00:20.8]} 29. dxe4 {[%clk 0:01:23.6]}
29... d5 {[%clk 0:00:21.2]} 30. cxd5 {[%clk 0:01:18.1]} 30... cxd5 {[%clk
0:00:20.9]} 31. Nxa5 {[%clk 0:00:54.3]} 31... d4 {[%clk 0:00:19.4]} 32. Nc4
{[%clk 0:00:48.9]} 32... d3 {[%clk 0:00:18.8]} 33. Rb2 {[%clk 0:00:36.1]} 33...
Rd4 {[%clk 0:00:18.7]} 34. Nd2 {[%clk 0:00:29.2]} 34... Rxa4 {[%clk 0:00:18.7]}
35. Rb3 {[%clk 0:00:25.5]} 35... g4 {[%clk 0:00:18.7]} 36. Rxd3 {[%clk
0:00:24.8]} 36... Bf8 {[%clk 0:00:18.3]} 37. Kg2 {[%clk 0:00:23.3]} 37... Bc5
{[%clk 0:00:18]} 38. Nb3 {[%clk 0:00:22.4]} 38... Bb6 {[%clk 0:00:16.5]} 39.
Rd6+ {[%clk 0:00:22]} 1-0

[Event "*** Titled Tuesday Blitz"]
[Site "Chess.com"]
[Date "2021.02.09"]
[Round "2"]
[White "emperor87"]
[Black "Rap_woyska"]
[Result "1-0"]
[WhiteElo "2712"]
[BlackElo "2475"]
[TimeControl "180+1"]
[EndTime "10:18:14 PST"]
[Termination "emperor87 won by resignation"]

1. d4 {[%clk 0:03:00.9]} 1... d5 {[%clk 0:02:59]} 2. Nf3 {[%clk 0:03:00]} 2...
Nf6 {[%clk 0:02:59.1]} 3. c4 {[%clk 0:02:59.4]} 3... c6 {[%clk 0:02:59.6]} 4.
Bg5 {[%clk 0:02:58.1]} 4... dxc4 {[%clk 0:02:58.4]} 5. e3 {[%clk 0:02:55]} 5...
Bg4 {[%clk 0:02:53.3]} 6. Bxf6 {[%clk 0:02:50.6]} 6... exf6 {[%clk 0:02:46.4]}
7. Bxc4 {[%clk 0:02:49.2]} 7... Bb4+ {[%clk 0:02:46.9]} 8. Nc3 {[%clk
0:02:48.7]} 8... O-O {[%clk 0:02:43.9]} 9. O-O {[%clk 0:02:47.9]} 9... Nd7
{[%clk 0:02:42.3]} 10. h3 {[%clk 0:02:47.4]} 10... Bh5 {[%clk 0:02:39.8]} 11.
Be2 {[%clk 0:02:46.7]} 11... f5 {[%clk 0:02:23.7]} 12. Rc1 {[%clk 0:02:40]}
12... Rc8 {[%clk 0:01:49.7]} 13. a3 {[%clk 0:02:37.5]} 13... Bd6 {[%clk
0:01:44.4]} 14. Nd2 {[%clk 0:02:34.1]} 14... Bxe2 {[%clk 0:01:43.4]} 15. Qxe2
{[%clk 0:02:35]} 15... Qf6 {[%clk 0:01:41.8]} 16. Qf3 {[%clk 0:02:34]} 16...
Rfe8 {[%clk 0:01:40.3]} 17. Nc4 {[%clk 0:02:33.5]} 17... Bb8 {[%clk 0:01:39.2]}
18. Rfd1 {[%clk 0:02:32.5]} 18... Nb6 {[%clk 0:01:24.1]} 19. Na5 {[%clk
0:02:30.6]} 19... Rc7 {[%clk 0:01:07]} 20. b4 {[%clk 0:02:29.8]} 20... Rd7
{[%clk 0:01:05]} 21. Nb3 {[%clk 0:02:23.8]} 21... Qd6 {[%clk 0:01:02.2]} 22. g3
{[%clk 0:02:22.7]} 22... g6 {[%clk 0:01:02]} 23. Kg2 {[%clk 0:02:21.9]} 23... h5
{[%clk 0:01:01.1]} 24. h4 {[%clk 0:02:21.3]} 24... Kg7 {[%clk 0:00:57.2]} 25.
Nc5 {[%clk 0:02:20.1]} 25... Rde7 {[%clk 0:00:56.5]} 26. Ne2 {[%clk 0:02:13.1]}
26... Nd5 {[%clk 0:00:56]} 27. Nf4 {[%clk 0:02:13.2]} 27... Nf6 {[%clk
0:00:54.2]} 28. Rc3 {[%clk 0:01:56.7]} 28... Qd8 {[%clk 0:00:50.5]} 29. Rdc1
{[%clk 0:01:52.6]} 29... Bxf4 {[%clk 0:00:50]} 30. Qxf4 {[%clk 0:01:39.9]} 30...
Qd5+ {[%clk 0:00:47.7]} 31. Qf3 {[%clk 0:01:38.8]} 31... a6 {[%clk 0:00:47.7]}
32. Qxd5 {[%clk 0:01:34.5]} 32... Nxd5 {[%clk 0:00:48.6]} 33. R3c2 {[%clk
0:01:34.4]} 33... f6 {[%clk 0:00:45.1]} 34. Rb2 {[%clk 0:01:30.6]} 34... Kf7
{[%clk 0:00:44.9]} 35. a4 {[%clk 0:01:30.3]} 35... g5 {[%clk 0:00:42]} 36. Rh1
{[%clk 0:01:25]} 36... Kg6 {[%clk 0:00:39.4]} 37. b5 {[%clk 0:01:22.5]} 37...
cxb5 {[%clk 0:00:34.9]} 38. axb5 {[%clk 0:01:22.2]} 38... a5 {[%clk 0:00:35.8]}
39. b6 {[%clk 0:01:22.4]} 39... f4 {[%clk 0:00:35.6]} 40. gxf4 {[%clk
0:01:18.2]} 40... gxf4 {[%clk 0:00:35.2]} 41. e4 {[%clk 0:01:18.7]} 41... Nb4
{[%clk 0:00:28.2]} 42. Ra1 {[%clk 0:01:10.3]} 42... Rd8 {[%clk 0:00:23.8]} 43.
d5 {[%clk 0:01:09.7]} 43... Rc8 {[%clk 0:00:23.9]} 44. Rxa5 {[%clk 0:01:09.1]}
44... Rxc5 {[%clk 0:00:19.7]} 45. Rxc5 {[%clk 0:01:08.9]} 45... Nd3 {[%clk
0:00:19.3]} 46. Rc7 {[%clk 0:01:06.7]} 46... Rxe4 {[%clk 0:00:19.6]} 47. Rd2
{[%clk 0:01:04.8]} 47... Ne5 {[%clk 0:00:15.3]} 48. f3 {[%clk 0:00:56.6]} 48...
Rb4 {[%clk 0:00:15]} 49. d6 {[%clk 0:00:55.6]} 49... Rxb6 {[%clk 0:00:15.1]} 50.
d7 {[%clk 0:00:55.9]} 50... Nxd7 {[%clk 0:00:15.2]} 51. Rcxd7 {[%clk 0:00:55.6]}
51... Rb1 {[%clk 0:00:14.4]} 52. R7d4 {[%clk 0:00:55.1]} 1-0